Cogmind - Beta 15 @@@ ROGUE MODE // 2025.09.03 @ 21:33:54 Player: beans Result: Destroyed by G-47 Trooper with Particle Gun Performance ------------- Evolutions (3) 1500 Regions Visited (7) 1400 Robots Destroyed (118) 590 Value Destroyed (2980) 2980 Prototype IDs (30) 600 Alien Tech Used (0) 0 Bonus (336) 336 TOTAL SCORE: 7406 Bonus ------- High Alert Combat Kills 72 Aligned with FarCom 300 Friendly Fire -36 Cogmind --------- Core Integrity 0/700 Matter 17/300 Energy 8/100 System Corruption 1% Temperature Cool (72) Movement Core (150) Ox2 Location -7/Factory Parts ------- > --- POWER (1) -------- (None) > --- PROPULSION (4) --- (None) > --- UTILITY (5) ------ Transport Network Coupler Weapon Cycler > --- WEAPON (3) ------- Heavy Laser Heavy Laser > --- INVENTORY (5) ---- Heavy Plasma Cannon Heavy Plasma Cannon Peak State ------------ > --- POWER ------------ Improved Deuterium Engine > --- PROPULSION ------- Xenon Bombardment Thruster Xenon Bombardment Thruster Xenon Bombardment Thruster Xenon Bombardment Thruster > --- UTILITY ---------- Improved Heat Sink Transport Network Coupler Weapon Cycler Weapon Cycler Hacking Suite > --- WEAPON ----------- Heavy Plasma Cannon Heavy Plasma Cannon > --- INVENTORY -------- Gauss Cannon Missile Launcher Heavy Rocket Launcher [Rating: 46] Favorites ----------- Power Cooled Ion Engine Engine Cooled Ion Engine Power Core Light Nuclear Core Propulsion Light Treads Treads Light Treads Leg Aluminum Leg Hover Unit Airjet Flight Unit Xenon Bombardment Thruster Utility Improved Heat Sink Device Improved Heat Sink Processor Transport Network Coupler Hackware Hacking Suite Weapon Improved Medium Laser Energy Gun Improved Medium Laser Energy Cannon Heavy Plasma Cannon Ballistic Gun Assault Rifle Ballistic Cannon Gauss Cannon Launcher Missile Launcher Build | -11 -10 -9 -9 -9 -8 -8 -7 ------- Run | Yrd Mat Mat Min Exi Min Mat Fac Slots Evolved 6 | . . 2 . . . 2 2 Power . | . . . . . . . . Propulsion 2 | . . . . . . . 2 Utility 3 | . . 1 . . . 2 . Weapon 1 | . . 1 . . . . . Parts Attached 66 | 5 7 16 . . 1 15 22 Power 8 | 1 1 3 . . . 1 2 Engine 7 | 1 . 3 . . . 1 2 Core 1 | . 1 . . . . . . Reactor . | . . . . . . . . Propulsion 18 | 2 . 2 . . 1 6 7 Treads 3 | . . 2 . . 1 . . Leg 2 | 2 . . . . . . . Wheel . | . . . . . . . . Hover 4 | . . . . . . 4 . Flight 9 | . . . . . . 2 7 Utility 13 | . 3 2 . . . 4 4 Device 9 | . 3 1 . . . 1 4 Storage . | . . . . . . . . Processor 1 | . . 1 . . . . . Hackware 3 | . . . . . . 3 . Protection . | . . . . . . . . Artifact . | . . . . . . . . Weapon 27 | 2 3 9 . . . 4 9 Energy Gun 17 | . 3 8 . . . 3 3 Energy Cannon 3 | . . 1 . . . . 2 Ballistic Gun 2 | 2 . . . . . . . Ballistic Cannon 2 | . . . . . . . 2 Launcher 3 | . . . . . . 1 2 Special Weapon . | . . . . . . . . Impact Weapon . | . . . . . . . . Slashing Weapon . | . . . . . . . . Piercing Weapon . | . . . . . . . . Special Melee Weapon . | . . . . . . . . Unidentified Prototypes 7 | . . 4 . . . 1 2 Parts Lost 31 | . . 6 . . 1 7 17 Power 4 | . . 2 . . . 1 1 Propulsion 11 | . . 2 . . 1 1 7 Utility 7 | . . . . . . 3 4 Weapon 9 | . . 2 . . . 2 5 Highest Loss Streak 12 | . . 2 . . 1 5 12 To Critical Strikes 1 | . . . . . 1 . . Average Backups 4 | 1 2 4 5 5 4 4 4 Power . | . . . 1 1 1 . . Propulsion . | . . . . . . 1 . Utility 1 | . . 1 3 3 3 1 . Weapon 1 | . 1 3 1 1 . . 2 Tool/Special . | . . . . . . . . Unused Backups 7 | 2 . . . . . 4 1 Power . | . . . . . . . . Propulsion 6 | 2 . . . . . 4 . Utility 1 | . . . . . . . 1 Weapon . | . . . . . . . . Tool/Special . | . . . . . . . . Average Slot Usage (%) 85 | . 90 87 100 83 91 87 72 Engine 8 | . 10 8 11 11 11 7 6 Treads 8 | . . 7 22 22 14 2 . Leg 5 | . 28 9 . . . . . Hover 1 | . . . . . . 12 . Flight 4 | . . . . . . 1 25 Device 21 | . 19 26 22 22 22 14 17 Processor 7 | . . 6 11 11 11 9 7 Hackware 3 | . . . . . . 16 7 Energy Gun 20 | . 12 26 33 17 33 22 2 Ballistic Gun 1 | . 14 . . . . . . Peak Build Rating 46 | 5 13 22 22 22 22 33 46 Average Rating 21 | 3 8 16 22 17 21 27 34 On Entrance 16 | . 5 13 22 22 22 22 28 Naked Turns . | . . . . . . . . Heaviest Build 33 | 8 13 19 19 19 19 20 33 Greatest Support 40 | 20 20 40 40 40 40 40 24 Greatest Overweight (x) 6 | . . 6 . . . 2 2 Average Overweight (x) . | . . . . . . . . Largest Inventory Capacity 5 | 5 5 5 5 5 5 5 5 Average Capacity 5 | 5 5 5 5 5 5 5 5 Most Carried 5 | 5 5 5 5 5 5 5 5 Average Carried 4 | 1 2 4 5 5 4 4 4 Final Capacity 5 | 5 5 5 5 5 5 5 5 Final Carried 5 | 1 4 5 5 5 5 4 2 Class Distribution -------------------- 43% | Scavenger-Skirmisher 26% | Scavenger-Mutant 12% | Mutant 8% | Sprinter 3% | Hacker-Mutant Dominant Class ---------------- Mutant | -10/Materials Scavenger-Skirmisher | -9/Materials Scavenger-Skirmisher | -9/Mines Scavenger-Skirmisher | -9/Exiles Scavenger-Skirmisher | -8/Mines Scavenger-Skirmisher | -8/Materials Sprinter | -7/Factory Resources | -11 -10 -9 -9 -9 -8 -8 -7 ----------- Run | Yrd Mat Mat Min Exi Min Mat Fac Matter Collected 1385 | 258 129 409 8 . 78 86 417 Remotely . | . . . . . . . . Salvage Created 4085 | 84 390 1625 160 . 443 563 820 Parts 222 | 1 20 83 7 . 16 41 54 Haulers Intercepted 11 | . 1 6 . . . 1 3 Recyclers Shooed 6 | . 3 1 . . . 1 1 Parts Field Recycled . | . . . . . . . . Retrieved Matter . | . . . . . . . . Parts Self-Destructed . | . . . . . . . . Prevented . | . . . . . . . . Kills | -11 -10 -9 -9 -9 -8 -8 -7 ------- Run | Yrd Mat Mat Min Exi Min Mat Fac Combat Hostiles Destroyed 69 | . 3 21 3 . 6 13 23 Guns 44 | . 3 20 3 . 6 9 3 Cannons 10 | . . . . . . . 10 AOE 13 | . . . . . . 3 10 Classes Destroyed 16 | 1 3 7 1 . . . 4 Worker 12 | . 1 5 . . 1 2 3 Builder 4 | . . 2 . . . 1 1 Tunneler 3 | . . . 1 . 2 . . Hauler 11 | . 1 6 . . . 1 3 Recycler 7 | 1 2 2 . . 2 . . Mechanic 2 | . . 1 . . . 1 . Operator 1 | . . 1 . . . . . Watcher 9 | . . 5 . . . 1 3 Swarmer 18 | . . 3 . . 3 6 6 Grunt 28 | . 3 12 3 . 2 4 4 Brawler 3 | . . 2 . . 1 . . Protector 2 | . . . . . . . 2 Sentry 9 | . . 4 . . . 3 2 Specialist 1 | . . . . . . . 1 Hunter 5 | . . . . . . . 5 Programmer 3 | . . . . . . . 3 Best Kill Streak 10 | 1 2 8 3 . 4 7 10 Combat Bots Only 10 | . 2 6 3 . 3 8 10 Max Kills in Single Turn 6 | 1 2 2 1 . 2 3 6 Gunslinging 1 | . . 1 . . 1 . . Exploded 6 | . . . . . . 3 6 Melee . | . . . . . . . . Uniques/NPCs Destroyed . | . . . . . . . . Combat | -11 -10 -9 -9 -9 -8 -8 -7 -------- Run | Yrd Mat Mat Min Exi Min Mat Fac Hostile Shots Fired 452 | . 17 77 8 . 34 79 237 Missed 189 | . 9 19 3 . 5 30 123 Hits 263 | . 8 58 5 . 29 49 114 Melee 3 | . . 2 . . 1 . . Projectile 260 | . 8 56 5 . 28 49 114 Critical Strikes 6 | . . 1 1 . 3 1 . Damage Taken 3920 | . 106 703 67 . 356 627 2061 Core 1178 | . 31 137 17 . 80 208 705 Absorbed by Shields . | . . . . . . . . Core Remaining (%) 72 | 100 87 . . . 41 62 . Volleys Fired 269 | 2 30 92 9 1 17 38 80 Largest 3 | 2 2 3 3 3 3 3 2 Hottest 180 | 40 130 175 168 168 168 177 180 Shots Fired 538 | 4 59 214 28 4 51 88 90 Gun 469 | 4 59 214 28 4 51 85 24 Cannon 55 | . . . . . . . 55 Launcher 14 | . . . . . . 3 11 Special . | . . . . . . . . Kinetic 65 | 4 25 . . . . . 36 Thermal 428 | . 34 185 28 4 51 83 43 Explosive 14 | . . . . . . 3 11 Electromagnetic 31 | . . 29 . . . 2 . Robot Hit Streak 22 | 3 4 10 22 . 7 13 13 Robot Miss Streak 5 | 1 5 3 1 . 4 3 4 Penetration Max . | . . . . . . . . Secondary Targets 5 | . 1 1 . . 3 . . Max Gunslinging Chain 1 | . 1 1 . . 1 . . Shots Hit Robots 315 | 3 24 128 15 . 32 56 57 Core Hits 198 | 2 14 62 5 . 14 27 74 Critical Kills . | . . . . . . . . Critical Parts Destroyed . | . . . . . . . . Critical Strikes 20 | . . 11 1 . 2 3 3 Burn 18 | . . 11 1 . 2 3 1 Blast 2 | . . . . . . . 2 Melee Attacks . | . . . . . . . . Impact . | . . . . . . . . Slashing . | . . . . . . . . Piercing . | . . . . . . . . Sneak Attacks . | . . . . . . . . Combat Hostiles . | . . . . . . . . Follow-up Attacks . | . . . . . . . . Damage Inflicted 8466 | 29 305 2025 269 . 607 1141 4090 Guns 4397 | 29 305 2025 269 . 607 911 251 Cannons 1152 | . . . . . . . 1152 Explosions 2917 | . . . . . . 230 2687 Melee . | . . . . . . . . Ramming . | . . . . . . . . Kinetic 937 | 29 133 . . . . . 775 Thermal 4346 | . 172 1708 269 . 607 876 714 Explosive 2831 | . . . . . . 230 2601 Electromagnetic 352 | . . 317 . . . 35 . Impact . | . . . . . . . . Slashing . | . . . . . . . . Piercing . | . . . . . . . . Highest Corruption 3 | . . 3 3 3 3 . 1 Average Corruption 2 | . . 3 3 3 3 . 1 Corruption Purged . | . . . . . . . . Corruption Blocked . | . . . . . . . . Effects 39 | . . 20 4 9 5 . 1 Message Errors 12 | . . 7 2 3 . . . Matter Fused 14 | . . 6 1 4 2 . 1 Heat Flow Errors 2 | . . . . . 2 . . Energy Discharges 2 | . . 2 . . . . . Parts Fused 1 | . . . . . 1 . . Data Loss (minor) 4 | . . 3 . 1 . . . Misfires 4 | . . 2 1 1 . . . Overload Shots . | . . . . . . . . Overflow Damage 120 | . . . . . . . 120 Projectiles 26 | . . . . . . . 26 Explosions 94 | . . . . . . . 94 Melee . | . . . . . . . . Knockbacks 11 | . . . . . . . 11 Impact . | . . . . . . . . Kinetic 9 | . . . . . . . 9 Secondary 2 | . . . . . . . 2 Self-Inflicted Damage 283 | . . 23 . . . . 260 Shots 5 | . . 1 . . . . 4 Rammed . | . . . . . . . . Targets Rammed . | . . . . . . . . Kicked . | . . . . . . . . Crushed . | . . . . . . . . Highest Temperature 391 | . 103 54 46 9 262 120 391 Average Temperature 46 | . 33 15 20 6 78 27 76 Received Heat Transfer 990 | . 57 222 57 . 162 234 258 Siege Activations . | . . . . . . . . Martial Activations . | . . . . . . . . Shielding Activations . | . . . . . . . . Robots Disrupted . | . . . . . . . . Combat Hostiles . | . . . . . . . . Robots Corrupted . | . . . . . . . . Combat Hostiles . | . . . . . . . . Parts Fried 1 | . . 1 . . . . . Impact Corruptions . | . . . . . . . . Robots Melted 2 | . . 1 . . . 1 . Combat Hostiles 2 | . . 1 . . . 1 . Parts Melted 19 | . . 11 1 . 4 3 . Heat Transferred 10775 | . 444 4847 666 . 1443 2183 1192 Parts Sabotaged . | . . . . . . . . Parts Stolen . | . . . . . . . . Parts Stripped . | . . . . . . . . Power Chain Reactions . | . . . . . . . . Alert | -11 -10 -9 -9 -9 -8 -8 -7 ------- Run | Yrd Mat Mat Min Exi Min Mat Fac Maximum Alert Level 2 | . . 1 . . . 1 2 Low Security (%) 85 | 100 100 73 100 . 100 83 87 Level 1 13 | . . 26 . . . 16 5 Level 2 1 | . . . . . . . 7 Level 3 . | . . . . . . . . Level 4 . | . . . . . . . . Level 5 . | . . . . . . . . High Security . | . . . . . . . . Max Security . | . . . . . . . . Peak Influence 442 | 5 75 264 146 . 70 230 442 Initial 101 | . . 4 101 . . 4 93 Average 97 | . 25 138 109 . 26 65 121 Influence Increases 2429 | 5 102 771 90 . 165 461 835 Destroy 0b10 Robot/C 1340 | . 60 420 60 . 120 260 420 Destroy 0b10 Robot/NC 255 | 5 20 110 5 . 25 30 60 Destroy Leader 308 | . 22 122 10 . 20 64 70 Disable Machine 150 | . . 60 . . . . 90 Destroy Structure 181 | . . 44 . . . 32 105 Lose Combat Pursuer 195 | . . 15 15 . . 75 90 Influence Decreases 2005 | 5 90 523 269 81 153 267 617 Entered New Map 369 | . . 8 159 81 . 8 113 Time Decay 1346 | 5 90 455 110 . 153 199 334 Lost Part 290 | . . 60 . . . 60 170 Squads Dispatched 16 | . 1 5 . . . 4 6 Investigation 4 | . . 1 . . . 2 1 Extermination 1 | . . . . . . . 1 Reinforcement 8 | . 1 4 . . . 1 2 Assault . | . . . . . . . . Garrison 3 | . . . . . . 1 2 Intercept . | . . . . . . . . Searches Triggered . | . . . . . . . . Construction Impeded 1 | . . . . . . . 1 Haulers Reinforced . | . . . . . . . . Active Scanning Responses . | . . . . . . . . Cargo Convoy Interrupts 1 | . . . . . . . 1 Stealth | -11 -10 -9 -9 -9 -8 -8 -7 --------- Run | Yrd Mat Mat Min Exi Min Mat Fac Distress Signals 15 | . 1 6 . . . 5 3 Communications Jammed . | . . . . . . . . Distress Signals . | . . . . . . . . Times Spotted 131 | . 12 33 3 . 7 24 52 Peak Tracking Total 15 | . 4 6 3 . 4 11 15 Tactical Retreats 7 | . . 1 1 . . 2 3 Traps | -11 -10 -9 -9 -9 -8 -8 -7 ------- Run | Yrd Mat Mat Min Exi Min Mat Fac Traps Triggered 8 | . . 1 . . . 2 5 Indirectly . | . . . . . . . . Trap Hack Attempts . | . . . . . . . . Triggered . | . . . . . . . . Disarmed . | . . . . . . . . Reprogrammed . | . . . . . . . . Reused . | . . . . . . . . Traps Extracted . | . . . . . . . . Installed . | . . . . . . . . Triggered . | . . . . . . . . Machines | -11 -10 -9 -9 -9 -8 -8 -7 ---------- Run | Yrd Mat Mat Min Exi Min Mat Fac Machines Disabled 11 | . . 4 . 1 . . 6 Max in Single Turn 3 | . . 3 . 1 . . 3 Machines Repaired . | . . . . . . . . Machines Dismantled . | . . . . . . . . Machines Sabotaged . | . . . . . . . . Overloaded Fab Kills . | . . . . . . . . Hacking | -11 -10 -9 -9 -9 -8 -8 -7 --------- Run | Yrd Mat Mat Min Exi Min Mat Fac Machines Accessed 3 | . . 1 . 1 . . 1 Terminals 2 | . . 1 . . . . 1 Fabricators . | . . . . . . . . Repair Stations . | . . . . . . . . Recycling Units . | . . . . . . . . Scanalyzers . | . . . . . . . . Garrison Access . | . . . . . . . . Total Hacks 3 | . . 1 . 1 . . 1 Successful 1 | . . . . 1 . . . Failed 2 | . . 1 . . . . 1 Catastrophic 1 | . . . . . . . 1 Database Lockouts . | . . . . . . . . Manual 2 | . . . . 1 . . 1 Terminals 2 | . . 1 . . . . 1 Fabricators . | . . . . . . . . Repair Stations . | . . . . . . . . Recycling Units . | . . . . . . . . Scanalyzers . | . . . . . . . . Garrison Access . | . . . . . . . . Terminal Hacks 1 | . . . . 1 . . . Proto ID Catalog 1 | . . . . 1 . . . Fabricator Hacks . | . . . . . . . . Repair Station Hacks . | . . . . . . . . Recycling Unit Hacks . | . . . . . . . . Scanalyzer . | . . . . . . . . Garrison Access Hacks . | . . . . . . . . Unauthorized Hacks . | . . . . . . . . Terminals . | . . . . . . . . Fabricators . | . . . . . . . . Repair Stations . | . . . . . . . . Recycling Units . | . . . . . . . . Scanalyzers . | . . . . . . . . Garrison Access . | . . . . . . . . Data Cores Recovered . | . . . . . . . . Used . | . . . . . . . . Hacking Detections 1 | . . 1 . . . . . Full Trace Events . | . . . . . . . . Feedback Events . | . . . . . . . . Feedback Blocked . | . . . . . . . . Robot Schematics Acquired . | . . . . . . . . Robots Built . | . . . . . . . . Authchips . | . . . . . . . . Time . | . . . . . . . . Total Robot Build Rating . | . . . . . . . . Part Schematics Acquired . | . . . . . . . . Parts Built . | . . . . . . . . Authchips . | . . . . . . . . Time . | . . . . . . . . Total Part Build Rating . | . . . . . . . . Parts Repaired . | . . . . . . . . Time . | . . . . . . . . Parts Recycled . | . . . . . . . . Recycled Matter . | . . . . . . . . Retrieved Matter . | . . . . . . . . Retrieved Components . | . . . . . . . . Parts Scanalyzed . | . . . . . . . . Part Schematics Acquired . | . . . . . . . . Parts Damaged . | . . . . . . . . Bothacking | -11 -10 -9 -9 -9 -8 -8 -7 ------------ Run | Yrd Mat Mat Min Exi Min Mat Fac Used RIF Installer . | . . . . . . . . Robots Hacked . | . . . . . . . . Non-combat . | . . . . . . . . Combat . | . . . . . . . . Robot Hacks Applied . | . . . . . . . . Relay Couplers Released . | . . . . . . . . Fabnet Peak Effective % . | . . . . . . . . Robots Rewired . | . . . . . . . . Allies Hacked . | . . . . . . . . Hacks Repelled . | . . . . . . . . Allies | -11 -10 -9 -9 -9 -8 -8 -7 -------- Run | Yrd Mat Mat Min Exi Min Mat Fac Total Allies . | . . . . . . . . Largest Group . | . . . . . . . . Highest-Rated Group . | . . . . . . . . Highest-Rated Ally . | . . . . . . . . Total Orders . | . . . . . . . . Ally Attacks . | . . . . . . . . Total Damage . | . . . . . . . . Kills . | . . . . . . . . Allies Corrupted . | . . . . . . . . Allies Melted . | . . . . . . . . Intel | -11 -10 -9 -9 -9 -8 -8 -7 ------- Run | Yrd Mat Mat Min Exi Min Mat Fac Active Infowar (turns) 3900 | . 269 1306 223 453 418 489 742 Seismic 813 | . 269 544 . . . . . T.N.C. 3087 | . . 762 223 453 418 489 742 ECM 8 | . . . . . . 2 6 Robot Analysis Total . | . . . . . . . . Derelict Logs Recovered 1 | . . . 1 . . . . Drone Launches . | . . . . . . . . Drone Recoveries . | . . . . . . . . Exploration | -11 -10 -9 -9 -9 -8 -8 -7 ------------- Run | Yrd Mat Mat Min Exi Min Mat Fac Turns Passed 4014 | 85 297 1307 223 453 418 489 742 Spaces Moved 2736 | 54 145 527 113 278 209 289 1121 Core 96 | 17 . 55 . . . 2 22 Treads 874 | . . 240 113 278 209 34 . Legs 414 | 37 145 232 . . . . . Wheels . | . . . . . . . . Hover 215 | . . . . . . 215 . Flight 1137 | . . . . . . 38 1099 Fastest Speed 29 | 50 120 120 160 160 160 37 29 Average Speed 100 | 97 120 168 160 160 160 90 37 Slowest Speed 350 | 120 120 350 160 160 160 180 197 Overloaded Moves . | . . . . . . . . Propulsion Burnouts . | . . . . . . . . Robots Hopped 2 | . . . . . . . 2 Potential Cave-ins . | . . . . . . . . Cave-ins Triggered . | . . . . . . . . Exploration Rate (%) 38 | 5 30 54 31 68 40 44 37 Regions Visited 7 Branch Regions 3 Pre-discovered Areas . | . . . . . . . . Known Exits Taken . | . . . . . . . . Unknown Exits Taken 7 | 1 1 1 1 1 1 1 . Scrap Searched 1 | . . . . . 1 . . Spaces Dug . | . . . . . . . . Terrain Destroyed 198 | . . 41 . . . 27 130 Melee . | . . . . . . . . Projectile 11 | . . . . . . . 11 AOE 187 | . . 41 . . . 27 119 Terrain Rammed . | . . . . . . . . Walls Destroyed . | . . . . . . . . Machines Disabled . | . . . . . . . . Actions | -11 -10 -9 -9 -9 -8 -8 -7 --------- Run | Yrd Mat Mat Min Exi Min Mat Fac Total 3549 | 83 210 757 135 284 254 441 1385 Wait 352 | 14 21 99 14 . 26 74 104 Move 2725 | 53 144 526 112 277 208 288 1117 Hop 2 | . . . . . . . 2 Pick Up 47 | 7 6 8 . . 1 12 13 Fast Attach 25 | 1 . 12 . 3 1 2 6 Attach 39 | 4 4 2 . . . 9 20 Detach 13 | . 1 2 . . . 1 9 Swap 18 | . 3 4 . . . 6 5 Drop 41 | 2 1 12 . 3 1 11 11 Fire 269 | 2 30 92 9 1 17 38 80 Melee . | . . . . . . . . Ram . | . . . . . . . . Kick . | . . . . . . . . Crush . | . . . . . . . . Escape Stasis 18 | . . . . . . . 18 Rewire . | . . . . . . . . Trap . | . . . . . . . . Miscellaneous . | . . . . . . . . Route ------- -11/Scrapyard -10/Materials -9/Materials (discovered 3 exits: [*Mat x2] / [*Min]) -9/Mines -9/Exiles -8/Mines -8/Materials -7/Factory (discovered 2 exits: [*Fac] / [*Low]) History --------- Turn | Location | Event 5 | -11/Scrapyard | Discovered new exit (range 16) 86 | -11/Scrapyard | Entered Materials 245 | -10/Materials | Discovered new exit (range 14) 383 | -10/Materials | Entered another Materials area 383 | -9/Materials | Evolved 2 slots: Utility x1, Weapon x1 561 | -9/Materials | Build established: Scavenger-Mutant 815 | -9/Materials | Discovered new exit (range 15) 1461 | -9/Materials | Discovered new exit (range 13) 1499 | -9/Materials | Build established: Scavenger-Skirmisher 1677 | -9/Materials | Discovered new exit (range 7) 1690 | -9/Materials | Entered Mines 1802 | -9/Mines | Learned Materials stockpile data 1907 | -9/Mines | Deemed a non-threat by the Exiles lab entrance 1907 | -9/Mines | Discovered new exit (range 5) 1913 | -9/Mines | Entered Exiles 1953 | -9/Exiles | Met 8R-AWN 1979 | -9/Exiles | Met EX-HEX 2027 | -9/Exiles | Met EX-BIN 2046 | -9/Exiles | Aligned with FarCom system 2048 | -9/Exiles | Given EX-Vault access code 2086 | -9/Exiles | Opened EX-Vault 2126 | -9/Exiles | Warned to stay clear of 0b10 Research branches 2263 | -9/Exiles | Met EX-DEC 2340 | -9/Exiles | Discovered new exit (range 14) 2366 | -9/Exiles | Entered Mines 2640 | -8/Mines | Core integrity fell below 50% 2766 | -8/Mines | Discovered new exit (range 9) 2784 | -8/Mines | Entered Materials 2784 | -8/Materials | Evolved 2 slots: Utility x2 3097 | -8/Materials | Garrison activated, responded to threat 3218 | -8/Materials | Lost 5 parts (1p1n2u1w) 3233 | -8/Materials | Destroyed 8 combat bots 3247 | -8/Materials | Discovered new exit (range 16) 3273 | -8/Materials | Entered Factory 3273 | -7/Factory | Evolved 2 slots: Propulsion x2 3480 | -7/Factory | Discovered new exit (range 8) 3600 | -7/Factory | Allied Derelicts emerged from ambush trap array 3605 | -7/Factory | Build established: Sprinter 3628 | -7/Factory | Discovered new exit (range 4) 3730 | -7/Factory | Garrison activated, responded to threat 3944 | -7/Factory | Cargo convoy interrupted 3944 | -7/Factory | Garrison activated, responded to threat 3955 | -7/Factory | Core integrity fell below 50% 3984 | -7/Factory | Destroyed 10 combat bots 4003 | -7/Factory | Core integrity fell below 20% 4015 | -7/Factory | Destroyed by G-47 Trooper with Particle Gun Last Messages --------------- The unstable cave ceiling collapses. U-05 Engineer lays Concrete. U-05 Engineer builds a Wall. U-05 Engineer lays Concrete. P-60 Hacker knocked back. K-01 Serf collects debris. U-05 Engineer lays Concrete. K-01 Serf collects debris. U-05 Engineer builds a Wall. K-01 Serf collects debris. U-05 Engineer builds a Wall. X-67 Chaingunner knocked back. Flak Cannon destroyed. K-01 Serf collects debris. U-05 Engineer lays Concrete. System corrupted: Matter fused (-6). U-05 Engineer lays Concrete. Acquired Hvy. Laser. K-01 Serf collects debris. Manufacturing Mainframe disabled. Map ----- +----------------------------------------------------+ | | | | | | | ?????????????????????????????????????????????????? | | ?????????????????????????????????????????????????? | | ?????????????????????????????????????????????????? | | ?????????????????????????????????????????????????? | | ?????????????????????????????????????????????????? | | ?????????????????????????????????????????????????? | | ?????????????????????????????????????????????????? | | ?????????????????????????????????????############# | | ?????????????????????????????????????# | | ?????????????????????????????????????# | | ?????????????????????????????????????# | | ?????????????????????????????????????# | | ?????????????????????????????????????# ! | | ???a???????????????###???????######### | | ????????????????#### ######### ## | | ????????????????# ![!= # """ ## | | ????????????????# ""[ """" # """ ## | | ????????????????# """ """" # """ #? | | ????????????????# "F """" # #??? ? | | ????????????????# """ " "" # #????? ??? | | ????????????????# "" # ==! #????###+##### | | ????????????????# [[ # =] !###### | | ????????????????# @ !# =] # | | ????????????????# # + | | ????????????????# # # | | ???????########## # = ###!! | | ???????# + # #?#![ | | ???????# #""" ;;;###;x##;;### ####### """"" | | ???????# # " a!] """""" | | ???????# " #g """"" | | ???????# #g * """""" | | ???????# + * | | ???????# # ** | | ???????# # Y ! A ### | | ???????# Y # | | ?? ????# # # | | ? ????# " ## "" + | | ?# ????# #### ## # | | ?# ????# ##### # | | ?# ????# ####???# # | | ?# ????# #+###########+## ##########+######### | | ## ????# # #?? #?????? ??????# | | # ##### # #? #????"""" ????# | | = # # #??# """" T"??# | | *%| # #?? """" #??# """" ""#?# | | ! " #??? """" #??# """" [ #?# " | | % |=# #??? "?????????? #?# | +----------------------------------------------------+ Best States ------------- Heat Dissipation 62 Energy Generation 18 Energy Capacity 310 Matter Stores 300 Matter Capacity 300 Sight Range 16 Terrain Scan Density 10 Weapon Cycling 30 Evasion (%) 64 Recoil Reduction 2 Offensive Hacking 20 Defensive Hacking 10 Item Schematics ----------------- None Robot Schematics ------------------ None Fabricated ------------ Nothing Repaired ---------- Nothing Alien Tech Used ----------------- None Achievements -------------- None Challenges ------------ None Game ------ Seed DeepUltimateStreamer Manual? 0 Play Time 00:32:08 Cumulative 122.9 hours Start 2025.09.03 @ 21:01:24 End 2025.09.03 @ 21:33:54 Sessions 1 Manual Loads 0 Difficulty Rogue Special Mode None Game No. 439 Rogue 439 Adventurer 0 Explorer 0 Win Type - Total 0 Types 0/0/0/0/0/0/0/0/0/0 Lore% 46 Gallery% 45 Achievement% 33 Wizard Run 0 Options --------- Layout 2 ASCII 0 Keyboard 0 Movement Mouse Keybinds 0 Fullscreen 2 Font 24/Smallcaps Map View 50x44 Zoom Use 0% Tactical HUD 0 Map Filters NONE Filters NONE Steam 1 RUN: 7c068db8-e2ba-4eb5-99e1-45f5ad695dfb